[Event "Polish University-ch Open 2024"]
[Site "Lublin"]
[Date "2024.02.24"]
[Round "5.8"]
[White "Mis, Mieszko"]
[Black "Kukula, Karol"]
[Result "1-0"]
[ECO "E44"]
[WhiteElo "2325"]
[BlackElo "2011"]
[Annotator "TA"]
[PlyCount "63"]
[EventDate "2024.02.22"]
[EventType "swiss"]
[EventCountry "POL"]
[SourceTitle "playchess.com"]
[Source "ChessBase"]
[SourceQuality "1"]
[TimeControl "600+3"]

{[%evp 14,63,30,37,41,25,22,26,74,79,100,95,94,73,92,76,81,62,144,95,100,54,136,76,84,76,72,70,104,99,114,113,209,179,204,128,129,112,99,85,207,196,220,224,218,220,216,172,279,271,1294,1276]} 1. d4 {[%emt 0:00:06]} Nf6 {[%emt 0:00:01]} 2. c4 {[%emt 0:00:02]} e6 {[%emt 0:00:01]} 3. Nc3 {[%emt 0:00:02]} Bb4 {[%emt 0:00:01]} 4. e3 {[%emt 0:00:01]} b6 {[%emt 0:00:03]} 5. Nge2 {[%emt 0:00:20]} Bb7 {[%emt 0:00:03]} 6. a3 {[%emt 0:00:01]} Bxc3+ {[%emt 0:00:03]} 7. Nxc3 {[%emt 0:00:02]} O-O {[%emt 0:00:05]} 8. Bd3 {[%emt 0:00:37]} c5 {[%emt 0:00:21] [#]} 9. d5 $1 {[%emt 0:00:05]} exd5 {[%emt 0:00:27]} 10. cxd5 {[%emt 0:00:03]} d6 {[%emt 0:00:02]} (10... Nxd5 $11 11. Nxd5 Bxd5) 11. O-O {[%emt 0:00:08]} Nbd7 {[%emt 0:00:41]} 12. e4 {[%emt 0:00:03]} a6 {[%emt 0:00:50]} 13. Bf4 {[%emt 0:00:04]} Qe7 {[%emt 0:00:41]} 14. a4 {[%emt 0:00:04] White is more active.} Ne5 {[%emt 0:01:12]} 15. Bc2 {[%emt 0:00:06]} Bc8 {[%emt 0:01:42]} ({Black should play} 15... b5 $14) 16. Re1 {[%emt 0:00:10]} (16. Bg3 $142) 16... Bd7 {[%emt 0:00:22]} 17. Bg3 {[%emt 0:00:17]} ({White should try} 17. Bd2 $16) 17... Ng6 {[%emt 0:01:49]} ({Better is} 17... g5 $1 $14) 18. f4 {[%emt 0:00:23]} (18. h3 $142) 18... Bg4 $16 {[%emt 0:00:10]} 19. Qd2 {[%emt 0:00:07]} Nh5 {[%emt 0:00:27]} 20. Qf2 {[%emt 0:00:02]} Nxg3 {[%emt 0:01:23]} 21. Qxg3 {[%emt 0:00:02]} Bd7 {[%emt 0:00:01]} 22. e5 $36 {[%emt 0:00:11][%cal Oe5e6][%mdl 2048] Dodges Qf6. White is in control.} b5 {[%emt 0:00:12] [#]} (22... Nh4 $16 {might work better.} 23. Ne4 Bf5) 23. e6 $1 $18 {[%emt 0:00:24][%mdl 512]} fxe6 {[%emt 0:00:03]} 24. dxe6 {[%emt 0:00:02]} (24. f5 $6 b4 $16) 24... Bc6 {[%emt 0:00:35] Dodges Nd5} (24... Bxe6 $2 25. f5 (25. axb5 Qf6 $16) 25... c4 26. Rxe6 $18) 25. axb5 {[%emt 0:00:18]} axb5 {[%emt 0:00:00] [#]} 26. Rxa8 {[%emt 0:00:01]} Rxa8 {[%emt 0:00:00] [#] This move loses the game for Black.} (26... Bxa8 $16 {keeps fighting.} 27. f5 (27. Nxb5 Nxf4 28. Nxd6 Qxd6 $15) 27... Nh4) 27. f5 $1 {[%emt 0:00:02]} ({But not} 27. Bxg6 $6 hxg6 28. Qxg6 Qf6 29. Qxf6 gxf6 $16) 27... Ne5 {[%emt 0:00:00]} 28. Be4 {[%emt 0:00:03]} Bxe4 {[%emt 0:00:01]} 29. Nxe4 {[%emt 0:00:01] f6 is the strong threat.} Rf8 {[%emt 0:00:01]} 30. Rf1 {[%emt 0:00:37] Strongly threatening f6.} Kh8 {[%emt 0:00:06]} (30... g6 $142 31. Nc3 c4) 31. Rd1 {[%emt 0:00:23]} Rxf5 $2 {[%emt 0:00:13]} (31... Nc6 32. Rd5 (32. Qxd6 Rd8 $18) (32. Nxd6 Kg8 $18) (32. Rxd6 Nd4 $18) 32... Rd8 33. Rxd6 (33. Nxd6 Kg8 $18) 33... Rxd6 34. Qxd6 Qxd6 35. Nxd6 Kg8) 32. Nxd6 {[%emt 0:06:52] Weighted Error Value: White=0.15 (very precise) /Black=0.36.  Mistake:       	White=3     	Black=7      Inaccurate:     	White=1     	Black=1      OK:         	White=7     	Black=7      Best:        	White=3     	Black=2      Strong:       	White=1     	---} 1-0

[Event "Polish University-ch Open 2024"]
[Site "Lublin"]
[Date "2024.02.24"]
[Round "5.9"]
[White "Brzezinski, Mateusz"]
[Black "Molenda, Marcin"]
[Result "0-1"]
[ECO "D02"]
[WhiteElo "2176"]
[BlackElo "2377"]
[Annotator "TA"]
[PlyCount "68"]
[EventDate "2024.02.22"]
[EventType "swiss"]
[EventCountry "POL"]
[SourceTitle "playchess.com"]
[Source "ChessBase"]
[SourceQuality "1"]
[TimeControl "600+3"]

{[%evp 11,68,0,16,17,24,16,18,7,4,0,12,-18,-1,-67,-52,-86,-85,-89,-79,-94,-89,-136,-122,-175,-173,-219,-206,-302,-325,-543,-520,-555,-529,-581,-368,-777,-774,-1027,-1004,-985,-851,-856,-831,-1077,-460,-492,-501,-617,-646,-825,-823,-827,-739,-841,-841,-831,-825,-792,-722]} 1. d4 {[%emt 0:00:02]} Nf6 {[%emt 0:00:01]} 2. Nf3 {[%emt 0:00:01]} d5 {[%emt 0:00:03]} 3. c3 {[%emt 0:00:01]} e6 {[%emt 0:00:20]} 4. Bf4 {[%emt 0:00:05]} c5 {[%emt 0:00:01]} 5. e3 {[%emt 0:00:03]} Nc6 {[%emt 0:00:01]} 6. Nbd2 {[%emt 0:00:21]} cxd4 {[%emt 0:00:17]} 7. exd4 {[%emt 0:00:28]} Nh5 {[%emt 0:00:16]} 8. Be3 {[%emt 0:00:05]} Bd6 {[%emt 0:00:01]} 9. g3 {[%emt 0:00:01] The position is equal.} O-O {[%emt 0:00:50] [#]} 10. Ne5 $1 {[%emt 0:00:42]} g6 {[%emt 0:00:20]} 11. Bh6 {[%emt 0:01:11]} Ng7 {[%emt 0:00:08]} 12. Nxc6 {[%emt 0:01:32]} (12. Ndf3 $11) 12... bxc6 $15 {[%emt 0:00:01]} 13. Bd3 {[%emt 0:00:01]} f6 {[%emt 0:00:59]} 14. O-O {[%emt 0:00:27]} e5 {[%emt 0:00:28]} 15. Qa4 {[%emt 0:01:51]} Bd7 {[%emt 0:00:40]} 16. Rfe1 {[%emt 0:00:30]} (16. Nb3 $142) 16... e4 {[%emt 0:00:57]} 17. Be2 {[%emt 0:00:41]} (17. Nxe4 $17 dxe4 18. Bxe4) 17... Rf7 $19 {[%emt 0:00:09]} 18. Bxg7 {[%emt 0:00:04]} (18. Nxe4 $142 dxe4 19. Bc4) 18... Kxg7 {[%emt 0:00:03]} 19. c4 {[%emt 0:00:17]} (19. Nb3 $142) 19... f5 {[%emt 0:00:10]} 20. Rac1 $2 {[%emt 0:00:36]} (20. cxd5 cxd5 21. Bb5) 20... f4 {[%emt 0:00:09]} 21. cxd5 {[%emt 0:00:14]} cxd5 {[%emt 0:00:29]} 22. Bb5 {[%emt 0:00:01]} Be6 {[%emt 0:01:14]} 23. Rc6 $2 {[%emt 0:01:02] [#]} (23. Rc2) 23... e3 $1 {[%emt 0:00:06][%mdl 512] Threatens to win with ...exf2+. Black is clearly winning.} 24. Nf3 {[%emt 0:00:30]} (24. Re2 Bh3) 24... exf2+ {[%emt 0:00:05]} 25. Kxf2 {[%emt 0:00:01]} fxg3+ {[%emt 0:00:11]} 26. hxg3 {[%emt 0:00:01]} Bg4 {[%emt 0:00:21] This pair of bishops is nice.} 27. Re3 {[%emt 0:00:01]} Qf6 {[%emt 0:00:25]} (27... Bxf3 $142 28. Rxd6 Be4+ (28... Qxd6 $2 29. Rxf3 Rxf3+ 30. Kxf3 $19) 29. Ke1 Qxd6) 28. Qb3 {[%emt 0:00:01]} Raf8 {[%emt 0:00:11]} (28... Qxd4 $2 29. Kg2 Bxf3+ 30. Rxf3 Rxf3 31. Qxf3 $19) 29. Be2 {[%emt 0:00:05]} Bxf3 {[%emt 0:00:09]} (29... Qxd4 $2 30. Kg2 Bxf3+ 31. Bxf3 $19) 30. Bxf3 {[%emt 0:00:12] [#]} Bxg3+ $1 {[%emt 0:00:06][%mdl 512]} 31. Kxg3 {[%emt 0:00:01]} Qxc6 {[%emt 0:00:00]} 32. Bxd5 {[%emt 0:00:05]} Qc7+ {[%emt 0:00:23]} 33. Re5 {[%emt 0:00:03]} Rf5 {[%emt 0:00:11]} 34. Qe3 {[%emt 0:00:06]} Re8 {[%emt 0:00:20] White got outplayed after the opening.   Weighted Error Value: White=0.88/Black=0.40.  Mistake:       	White=7     	---        Inaccurate:     	White=3     	Black=1      OK:         	---       	Black=8      Brilliant:      	---       	Black=1} 0-1

[Event "Polish University-ch Open 2024"]
[Site "Lublin"]
[Date "2024.02.24"]
[Round "5.10"]
[White "Snihur, Piotr"]
[Black "Zerebiec, Maurycy"]
[Result "1-0"]
[ECO "C02"]
[WhiteElo "2278"]
[BlackElo "1996"]
[Annotator "TA"]
[PlyCount "87"]
[EventDate "2024.02.22"]
[EventType "swiss"]
[EventCountry "POL"]
[SourceTitle "playchess.com"]
[Source "ChessBase"]
[SourceQuality "1"]
[TimeControl "600+3"]

{[%evp 9,87,23,39,16,17,11,11,3,38,7,41,29,37,-14,-10,-7,-10,-25,-27,-62,-52,-73,-61,-61,-45,-118,-106,-141,-142,-448,-451,-438,-441,-445,-431,-432,-390,-518,-501,-556,-459,-405,-330,-330,-49,-34,91,21,62,71,269,265,379,370,417,417,414,414,1758,1698,1629,1589,29973,29972,10371,10023,29984,29985,29985,29986,29986,29987,29992,29987,29989,29989,29994,29995,29995,29995]} 1. e4 {[%emt 0:00:02]} e6 {[%emt 0:00:09]} 2. d4 {[%emt 0:00:04]} d5 {[%emt 0:00:01]} 3. e5 {[%emt 0:00:05]} c5 {[%emt 0:00:00]} 4. c3 {[%emt 0:00:01]} Qd7 {[%emt 0:00:01]} 5. Nf3 {[%emt 0:00:08]} b6 {[%emt 0:00:01]} 6. a3 {[%emt 0:00:36]} a5 {[%emt 0:00:07]} 7. Bf4 {[%emt 0:00:36]} Ne7 {[%emt 0:00:03]} 8. Nbd2 {[%emt 0:00:08] The position is equal.} h5 {[%emt 0:00:01]} 9. h3 {[%emt 0:00:29]} Nf5 {[%emt 0:00:23]} 10. Bd3 {[%emt 0:01:55]} Ba6 {[%emt 0:00:01]} 11. Qe2 {[%emt 0:00:43]} (11. Bxf5 $14 exf5 12. Nf1) 11... Bxd3 $11 {[%emt 0:00:04]} 12. Qxd3 {[%emt 0:00:01]} Nc6 {[%emt 0:00:20]} 13. Ke2 {[%emt 0:00:29]} a4 {[%emt 0:00:29]} 14. g4 {[%emt 0:00:17]} Nfe7 {[%emt 0:00:40]} 15. Rag1 {[%emt 0:00:38]} Na5 {[%emt 0:00:05]} 16. Be3 {[%emt 0:00:44]} Rc8 {[%emt 0:01:04]} 17. Ne1 {[%emt 0:00:38]} (17. Kf1 $15) 17... Nec6 {[%emt 0:00:28][%cal Oa5c4]} 18. f4 {[%emt 0:00:43]} Nc4 {[%emt 0:00:10]} 19. Qb1 $2 {[%emt 0:02:23][%mdl 8192]} (19. Nxc4 $17 {is tougher.} dxc4 20. Qe4 (20. Qxc4 $2 cxd4 21. Bf2 Nxe5 $19)) 19... Nxe3 $19 {[%emt 0:00:31]} 20. Kxe3 {[%emt 0:00:01]} cxd4+ {[%emt 0:00:01]} 21. cxd4 {[%emt 0:00:02] [#]} Nxd4 {[%emt 0:00:08][%mdl 512]} 22. Nd3 {[%emt 0:00:05]} Bc5 {[%emt 0:00:42]} 23. Nxc5 {[%emt 0:00:03]} bxc5 {[%emt 0:00:03]} 24. Rc1 {[%emt 0:00:07] [#]} c4 $1 {[%emt 0:00:12] White must now prevent ...Qa7.} 25. Kxd4 {[%emt 0:00:08]} Qa7+ {[%emt 0:05:34]} 26. Kc3 {[%emt 0:00:02][%cal Bd4c3,Bc3c2,Bc2d1][%mdl 32]} Qa5+ $2 {[%emt 0:00:00]} ({Black should try} 26... hxg4 $19 {And now ...d4+ would win.} 27. Kc2 Qd4 (27... gxh3 $2 28. Rcf1 $17) (27... Rxh3 $2 28. Rxh3 gxh3 29. Rh1 $19)) 27. Kc2 $15 {[%emt 0:00:02]} c3 {[%emt 0:00:00]} (27... Rb8 $15 28. Qa1 O-O) 28. bxc3 {[%emt 0:00:08]} (28. Kd1 $16) 28... Rxc3+ {[%emt 0:00:00]} 29. Kd1 $1 {[%emt 0:00:02]} ({Reject} 29. Kb2 d4 (29... O-O $2 30. Rxc3 d4 31. Rc4 $18) 30. Ka2 Qd5+ 31. Ka1 Rxa3+ (31... O-O 32. Rxc3 dxc3 33. Ne4 $16) 32. Kb2 Rc3 $11) 29... Rxc1+ $2 {[%emt 0:00:00] White stays focused until the end.} (29... O-O $16) 30. Qxc1 $18 {[%emt 0:00:04]} O-O {[%emt 0:00:00]} (30... hxg4 {keeps fighting.} 31. Qc6+ Ke7) 31. gxh5 {[%emt 0:00:07]} Qa7 {[%emt 0:00:00]} 32. Qc3 {[%emt 0:00:02] Repels Qe3} Qf2 {[%emt 0:00:00]} 33. Rf1 {[%emt 0:00:01]} Qh2 {[%emt 0:00:00]} (33... Qg2 $142 34. Qf3 Qxf3+ 35. Nxf3 (35. Rxf3 Rc8 $18) 35... Rb8) 34. Qf3 {[%emt 0:00:01]} Rb8 {[%emt 0:00:00]} 35. Rh1 {[%emt 0:00:02]} Rb1+ {[%emt 0:00:00]} 36. Nxb1 {[%emt 0:00:01]} Qb2 {[%emt 0:00:00]} 37. Nd2 {[%emt 0:00:02][%cal Bb1d2,Bd2e4,Be4g5][%mdl 32] White wants to mate with Ke2.} d4 {[%emt 0:00:00]} 38. Ke2 {[%emt 0:00:05] White mates.} Qb5+ {[%emt 0:00:00]} 39. Qd3 {[%emt 0:00:01]} Qd5 {[%emt 0:00:00]} 40. Rg1 {[%emt 0:00:01]} Kh8 {[%emt 0:00:00]} 41. Qc4 {[%emt 0:00:05]} Qd8 {[%emt 0:00:00]} 42. Ne4 {[%emt 0:00:02]} Qh4 {[%emt 0:00:00]} 43. Qc8+ {[%emt 0:00:06]} Kh7 {[%emt 0:00:00]} 44. Ng5+ {[%emt 0:00:00] Weighted Error Value: White=0.37/Black=0.60.  Loses game:     	White=1     	Black=1      Missed win:     	---       	Black=1      Mistake:       	White=3     	Black=3      Inaccurate:     	White=4     	Black=3      OK:         	White=6     	Black=6      Best:        	White=2     	Black=2      Strong:       	White=1     	---        Brilliant:      	---       	Black=1} 1-0

[Event "Polish University-ch Open 2024"]
[Site "Lublin"]
[Date "2024.02.24"]
[Round "5.11"]
[White "Fiedorek, Michal"]
[Black "Szustakowski, Antoni"]
[Result "0-1"]
[ECO "C02"]
[WhiteElo "2286"]
[BlackElo "2354"]
[Annotator "TA"]
[PlyCount "114"]
[EventDate "2024.02.22"]
[EventType "swiss"]
[EventCountry "POL"]
[SourceTitle "playchess.com"]
[Source "ChessBase"]
[SourceQuality "1"]
[TimeControl "600+3"]

{[%evp 19,114,0,0,0,0,-16,-5,-60,0,0,0,-65,0,0,0,0,0,0,10,2,14,0,0,0,0,0,0,0,0,0,0,0,0,-228,-227,-214,-231,-214,0,0,0,0,36,-12,-16,-11,-10,-25,-8,-6,0,-90,-21,-14,0,-97,-73,-87,-80,-74,-74,-84,-85,-134,0,-511,-550,-1063,-852,-1394,-1270,-29952,-10280,-29970,-11664,-29978,-29963,-29961,-29961,-29971,-29972,-29971,-29973,-29982,-29983,-29982,-29984,-29984,-29985,-29985,-29986,-29986,-29986,-29986,-29987,-29987,-29988]} 1. e4 {[%emt 0:00:01]} e6 {[%emt 0:00:04]} 2. d4 {[%emt 0:00:03]} d5 {[%emt 0:00:01]} 3. e5 {[%emt 0:00:01]} c5 {[%emt 0:00:00]} 4. c3 {[%emt 0:00:01]} Nc6 {[%emt 0:00:01]} 5. Nf3 {[%emt 0:00:01]} Bd7 {[%emt 0:00:01]} 6. Be2 {[%emt 0:00:05]} Nge7 {[%emt 0:00:10]} 7. O-O {[%emt 0:00:11]} cxd4 {[%emt 0:00:01]} 8. cxd4 {[%emt 0:00:06]} Nf5 {[%emt 0:00:01]} 9. Nc3 {[%emt 0:00:45]} Rc8 {[%emt 0:00:24]} 10. a3 {[%emt 0:00:22]} a6 {[%emt 0:00:01]} 11. Bg5 {[%emt 0:01:25]} Qb6 {[%emt 0:00:24][%csl LRb2,LRd4][%cal Rc6d4]} 12. Na4 {[%emt 0:00:02]} Qa7 {[%emt 0:00:01][%cal Rc6d4]} 13. Rc1 {[%emt 0:01:07]} (13. Be3 $11) 13... Nfxd4 {[%emt 0:01:26]} (13... b5 $15 14. Nc5 Nfxd4 15. Nxd4 Bxc5 16. Nxc6 Rxc6) 14. Nxd4 $11 {[%emt 0:00:08]} Nxd4 {[%emt 0:00:02]} (14... Qxd4 $2 15. Rxc6 Qxe5 16. Rxc8+ Bxc8 17. Qd2 $18) 15. Rxc8+ {[%emt 0:00:10]} Bxc8 {[%emt 0:00:01]} 16. Be3 $1 {[%emt 0:00:02]} Nxe2+ {[%emt 0:00:07]} 17. Qxe2 {[%emt 0:00:01]} d4 {[%emt 0:02:03]} 18. Qc4 {[%emt 0:00:49][%csl LRc8,LRd4]} Bd7 {[%emt 0:00:01]} 19. Bxd4 {[%emt 0:00:26]} (19. Qxd4 $2 Qxd4 20. Bxd4 Bxa4 $19) 19... Qb8 {[%emt 0:00:02] Schwarz hat schwache schwarze Felder} 20. Rc1 {[%emt 0:00:58]} Be7 {[%emt 0:01:36]} 21. Nc5 {[%emt 0:00:45] Zielt auf Nxd7 ab.} Bb5 {[%emt 0:00:25]} 22. Qb3 {[%emt 0:00:11] Und jetzt a4 wäre schön.} O-O {[%emt 0:00:48]} 23. Nxe6 {[%emt 0:01:52]} Rc8 {[%emt 0:00:51]} (23... fxe6 $2 24. Qxe6+ Kh8 25. Qxe7 $18) 24. Nc5 {[%emt 0:00:01]} b6 {[%emt 0:00:23]} 25. Nd3 {[%emt 0:00:07]} Rd8 {[%emt 0:00:32]} 26. a4 $2 {[%emt 0:01:28]} (26. Qc3 $1 $11 {und Weiss ist OK.}) 26... Bxd3 $1 $19 {[%emt 0:00:22]} 27. Qxd3 {[%emt 0:00:02] [#]} Bc5 $1 {[%emt 0:00:01][%mdl 512]} 28. Rc4 {[%emt 0:00:01]} Qxe5 {[%emt 0:00:57]} (28... Qa8 $19 {...Qd5 ist eine echte Drohung.} 29. b4 Bf8) 29. Bxe5 $11 {[%emt 0:00:04]} Rxd3 $19 {[%emt 0:00:01][%cal Rd3d1][%mdl 4096] Endspiel. KRB-KRB} 30. Kf1 {[%emt 0:00:12]} Rd2 {[%emt 0:00:38]} 31. Rf4 {[%emt 0:00:02]} (31. b4 $14 {scheint genauer.} Bf8 (31... Bxf2 32. Rc8+) (31... Rxf2+ 32. Ke1 $16) 32. Rc8) 31... f6 $11 {[%emt 0:00:05]} 32. Bc3 {[%emt 0:00:00]} Rc2 {[%emt 0:00:01]} 33. Rf3 {[%emt 0:00:07]} Rc1+ {[%emt 0:00:05]} 34. Ke2 {[%emt 0:00:01]} a5 {[%emt 0:00:03]} 35. Kd2 {[%emt 0:00:04]} (35. h3 $11 {bleibt in der Remisbreite.}) 35... Ra1 {[%emt 0:00:02] Schwarz steht aktiver.} (35... Rg1 $17 36. g3 Rg2) 36. Rf4 {[%emt 0:00:03]} Kf7 {[%emt 0:00:04]} 37. Kc2 {[%emt 0:00:02]} (37. g3 $11) 37... Rf1 {[%emt 0:00:01]} 38. Kb3 {[%emt 0:00:04]} Rxf2 {[%emt 0:00:03]} (38... Bxf2 $2 {geht unter.} 39. Bd4 Bxd4 (39... g5 $2 40. Rxf6+ Ke7 41. Rxf2 $18) 40. Rxf1 $18) 39. Rxf2 {[%emt 0:00:01]} Bxf2 $17 {[%emt 0:00:01] KB-KB} 40. Kc4 {[%emt 0:00:01]} Ke6 {[%emt 0:00:01]} 41. Kb5 {[%emt 0:00:04]} ({Vorzuziehen ist} 41. h3) 41... Kd5 {[%emt 0:00:02]} (41... g5 $17 {...g4 wäre nun fies.} 42. b4 axb4 43. Kxb4 g4) 42. Bd2 $2 {[%emt 0:00:05][%mdl 8192] [#] Ab hier gerät Weiß ins Schliddern.} (42. b4 $11) 42... g5 $1 $19 {[%emt 0:00:01]} 43. Bc3 {[%emt 0:00:05]} f5 {[%emt 0:00:01]} 44. Bf6 {[%emt 0:00:01]} g4 {[%emt 0:00:09] Droht ...f4 und aus.} 45. g3 {[%emt 0:00:00]} Bg1 {[%emt 0:00:07]} 46. Bd8 {[%emt 0:00:01]} Bxh2 {[%emt 0:00:02]} 47. Bxb6 {[%emt 0:00:05]} f4 {[%emt 0:00:01] Schwarz setzt Matt.} 48. gxf4 {[%emt 0:00:03]} g3 {[%emt 0:00:01]} 49. f5 {[%emt 0:00:05]} g2 {[%emt 0:00:05]} 50. f6 {[%emt 0:00:05]} Ke6 {[%emt 0:00:01]} ({Schlechter ist} 50... g1=R 51. Bxg1 Bxg1 52. f7 $11) 51. Kxa5 {[%emt 0:00:02]} g1=Q {[%emt 0:00:04]} 52. Bxg1 {[%emt 0:00:01]} Bxg1 {[%emt 0:00:01] KB-K3P} 53. b4 {[%emt 0:00:02]} h5 {[%emt 0:00:02]} 54. b5 {[%emt 0:00:01]} h4 {[%emt 0:00:04]} 55. b6 {[%emt 0:00:01] [#]} Bxb6+ $1 {[%emt 0:00:04][%mdl 512]} 56. Kxb6 {[%emt 0:00:01]} h3 {[%emt 0:00:01]} 57. a5 {[%emt 0:00:09]} h2 {[%emt 0:00:01] Gewichteter Fehlerwert: Weiß=0.95/Schwarz=0.13 (sehr präzise) .  Verlustzug:     	Weiß=2     	---        Gewinn verpasst:   	---       	Schwarz=1     Fehler:       	Weiß=5     	Schwarz=3     Ungenau:       	Weiß=2     	Schwarz=2     OK:         	Weiß=10    	Schwarz=13    Bester:       	Weiß=2     	Schwarz=2     Stark:        	Weiß=1     	Schwarz=2     Brilliant:      	---       	Schwarz=1} 0-1

[Event "Polish University-ch Open 2024"]
[Site "Lublin"]
[Date "2024.02.24"]
[Round "5.12"]
[White "Nowak, Mikolaj"]
[Black "Namyslak, Piotr"]
[Result "0-1"]
[ECO "D10"]
[WhiteElo "2317"]
[BlackElo "1763"]
[Annotator "RC"]
[PlyCount "116"]
[EventDate "2024.02.22"]
[EventType "swiss"]
[EventCountry "POL"]
[SourceTitle "playchess.com"]
[Source "ChessBase"]
[SourceQuality "1"]
[TimeControl "600+3"]

1. d4 {[%emt 0:00:02]} d5 {[%emt 0:00:01]} 2. c4 {[%emt 0:00:01]} c6 {[%emt 0:00:01]} 3. cxd5 {[%emt 0:00:02]} cxd5 {[%emt 0:00:01]} 4. Bg5 {[%emt 0:00:01]} Qb6 {[%emt 0:00:44]} 5. Nc3 {[%emt 0:00:06]} e6 {[%emt 0:00:06]} 6. Qd2 {[%emt 0:00:02]} Be7 {[%emt 0:00:23]} 7. Bxe7 {[%emt 0:00:05]} Nxe7 {[%emt 0:00:02]} 8. e3 {[%emt 0:00:02]} Bd7 {[%emt 0:00:26]} 9. Nf3 {[%emt 0:00:03]} Nbc6 {[%emt 0:00:20]} 10. Be2 {[%emt 0:00:05]} Rc8 {[%emt 0:00:12]} 11. O-O {[%emt 0:00:03]} O-O {[%emt 0:00:07]} 12. Rfc1 {[%emt 0:00:11]} f6 {[%emt 0:00:56]} 13. Na4 {[%emt 0:00:14]} Qd8 {[%emt 0:00:33]} 14. b3 {[%emt 0:01:13]} Nf5 {[%emt 0:00:12]} 15. Qb2 {[%emt 0:00:47]} Qe7 {[%emt 0:01:24]} 16. a3 {[%emt 0:00:24]} Rc7 {[%emt 0:00:24]} 17. b4 {[%emt 0:00:20]} Rfc8 {[%emt 0:00:07]} 18. Nc5 {[%emt 0:00:05]} Nb8 {[%emt 0:00:30]} 19. Nd2 {[%emt 0:00:44]} Nd6 {[%emt 0:00:06]} 20. h3 {[%emt 0:00:16]} b6 {[%emt 0:00:52]} 21. Na6 {[%emt 0:00:34]} Nxa6 {[%emt 0:00:44]} 22. Bxa6 {[%emt 0:00:02]} Rxc1+ {[%emt 0:00:02]} 23. Rxc1 {[%emt 0:00:01]} Rxc1+ {[%emt 0:00:06]} 24. Qxc1 {[%emt 0:00:02]} Qd8 {[%emt 0:00:16]} 25. Qc2 {[%emt 0:00:49]} g6 {[%emt 0:00:11]} 26. a4 {[%emt 0:00:30]} Kf7 {[%emt 0:00:03]} 27. h4 {[%emt 0:00:14]} Ne8 {[%emt 0:00:30]} 28. Bd3 {[%emt 0:01:29]} Qc7 {[%emt 0:00:01]} 29. Qb1 {[%emt 0:00:01]} Qc3 {[%emt 0:01:32]} 30. Nf3 {[%emt 0:00:03]} f5 {[%emt 0:00:18]} 31. Ne5+ {[%emt 0:00:13]} Ke7 {[%emt 0:00:03]} 32. a5 {[%emt 0:00:41]} Nd6 {[%emt 0:00:10]} 33. axb6 {[%emt 0:00:14]} axb6 {[%emt 0:00:00]} 34. b5 {[%emt 0:00:17]} Nc4 {[%emt 0:00:02]} 35. Nf3 {[%emt 0:00:57]} Qb2 {[%emt 0:00:04]} 36. Qf1 {[%emt 0:00:17]} Bxb5 {[%emt 0:00:05]} 37. h5 {[%emt 0:00:03]} Na3 {[%emt 0:00:07]} 38. Bxb5 {[%emt 0:00:18]} Qxb5 {[%emt 0:00:02]} 39. h6 {[%emt 0:00:06]} Qxf1+ {[%emt 0:00:10]} 40. Kxf1 {[%emt 0:00:01]} Kf6 {[%emt 0:00:01]} 41. Ke2 {[%emt 0:00:04]} Nc4 {[%emt 0:00:05]} 42. Kd3 {[%emt 0:00:02]} g5 {[%emt 0:00:01]} 43. g4 {[%emt 0:00:03]} fxg4 {[%emt 0:00:03]} 44. Nh2 {[%emt 0:00:01]} Kf5 {[%emt 0:00:02]} 45. Kc3 {[%emt 0:00:02]} Nd6 {[%emt 0:00:02]} 46. Kd3 {[%emt 0:00:04]} Ne4 {[%emt 0:00:03]} 47. f3 {[%emt 0:00:00]} gxf3 {[%emt 0:00:06]} 48. Nxf3 {[%emt 0:00:01]} g4 {[%emt 0:00:03]} 49. Ne5 {[%emt 0:00:01]} g3 {[%emt 0:00:04]} 50. Ke2 {[%emt 0:00:01]} Kg5 {[%emt 0:00:02]} 51. Nf7+ {[%emt 0:00:08]} Kg6 {[%emt 0:00:02]} 52. Nd8 {[%emt 0:00:01]} Kf6 {[%emt 0:00:02]} 53. Nc6 {[%emt 0:00:03]} b5 {[%emt 0:00:01]} 54. Kf3 {[%emt 0:00:03]} Kg5 {[%emt 0:00:02]} 55. Nd8 {[%emt 0:00:02]} Kf5 {[%emt 0:00:02]} 56. Nc6 {[%emt 0:00:03]} Kg6 {[%emt 0:00:01]} 57. Nd8 {[%emt 0:00:03]} b4 {[%emt 0:00:03]} 58. Nxe6 {[%emt 0:00:02]} Ng5+ {[%emt 0:00:01]} 0-1